[Event "Titled Tuesday Blitz July 4 Late 2023"]
[White "Tan, Ralph"]
[Black "Antonio, Jorge Carlos"]
[WhiteFideId "30966590"]
[BlackFideId "113190"]
[WhiteElo "2497"]
[BlackElo "2287"]
[Result "0-1"]
[Round "5"]
[TimeControl "180+2"]
[Date "2023.07.04"]
[WhiteClock "0:00:50"]
[BlackClock "0:01:35"]
[Board "131"]

1. e4 {[%clk 0:03:00]}  c5 {[%clk 0:02:58]} 2. Nf3 {[%clk 0:03:00]}  e6 {[%clk 0:02:57]} 3. d4 {[%clk 0:03:01]}  cxd4 {[%clk 0:02:57]} 4. Nxd4 {[%clk 0:03:01]}  a6 {[%clk 0:02:56]} 5. c4 {[%clk 0:03:01]}  Nf6 {[%clk 0:02:51]} 6. Nc3 {[%clk 0:03:01]}  Bb4 {[%clk 0:02:50]} 7. Bd3 {[%clk 0:02:43]}  Nc6 {[%clk 0:02:49]} 8. Nc2 {[%clk 0:02:42]}  Bxc3+ {[%clk 0:02:45]} 9. bxc3 {[%clk 0:02:43]}  O-O {[%clk 0:02:40]} 10. O-O {[%clk 0:02:42]}  d5 {[%clk 0:02:36]} 11. cxd5 {[%clk 0:02:42]}  exd5 {[%clk 0:02:36]} 12. exd5 {[%clk 0:02:34]}  Nxd5 {[%clk 0:02:35]} 13. Bb2 {[%clk 0:02:16]}  Nf4 {[%clk 0:02:28]} 14. Be4 {[%clk 0:02:10]}  Qg5 {[%clk 0:02:18]} 15. g3 {[%clk 0:02:07]}  Re8 {[%clk 0:02:09]} 16. Bxc6 {[%clk 0:01:56]}  Ne2+ {[%clk 0:02:04]} 17. Kh1 {[%clk 0:01:54]}  bxc6 {[%clk 0:02:01]} 18. Ne3 {[%clk 0:01:48]}  Qh5 {[%clk 0:01:56]} 19. f3 {[%clk 0:01:24]}  Nxg3+ {[%clk 0:01:51]} 20. Kg2 {[%clk 0:01:24]}  Nxf1 {[%clk 0:01:48]} 21. Nxf1 {[%clk 0:01:24]}  Bh3+ {[%clk 0:01:43]} 22. Kg1 {[%clk 0:01:19]}  Qg5+ {[%clk 0:01:39]} 23. Ng3 {[%clk 0:00:50]}  Rad8 {[%clk 0:01:35]} 0-1


[Site "https://www.chess.com"]

[Event "Titled Tuesday Blitz July 4 Late 2023"]
[White "Poeta, Caio Medeiros"]
[Black "CarolinaLujan"]
[WhiteFideId "2142660"]
[WhiteElo "2494"]
[BlackElo "2285"]
[Result "1/2-1/2"]
[Round "5"]
[TimeControl "180+2"]
[Date "2023.07.04"]
[WhiteClock "0:00:23"]
[BlackClock "0:00:11"]
[Board "132"]

1. d4 {[%clk 0:03:00]}  Nf6 {[%clk 0:02:56]} 2. c4 {[%clk 0:03:00]}  g6 {[%clk 0:02:56]} 3. Nc3 {[%clk 0:03:00]}  d5 {[%clk 0:02:56]} 4. cxd5 {[%clk 0:03:01]}  Nxd5 {[%clk 0:02:57]} 5. e4 {[%clk 0:03:02]}  Nxc3 {[%clk 0:02:57]} 6. bxc3 {[%clk 0:03:03]}  Bg7 {[%clk 0:02:58]} 7. Be3 {[%clk 0:03:04]}  c5 {[%clk 0:02:58]} 8. Rc1 {[%clk 0:03:04]}  Qa5 {[%clk 0:02:58]} 9. Qd2 {[%clk 0:03:04]}  Nc6 {[%clk 0:02:58]} 10. Nf3 {[%clk 0:03:04]}  O-O {[%clk 0:02:57]} 11. d5 {[%clk 0:03:04]}  Rd8 {[%clk 0:02:57]} 12. Bd3 {[%clk 0:03:03]}  e6 {[%clk 0:02:39]} 13. c4 {[%clk 0:03:03]}  Qa3 {[%clk 0:02:36]} 14. O-O {[%clk 0:02:50]}  Nb4 {[%clk 0:02:32]} 15. Bb1 {[%clk 0:02:17]}  b6 {[%clk 0:02:24]} 16. Rfd1 {[%clk 0:02:16]}  exd5 {[%clk 0:02:24]} 17. exd5 {[%clk 0:02:14]}  Bg4 {[%clk 0:02:22]} 18. Bg5 {[%clk 0:02:01]}  Bxf3 {[%clk 0:02:14]} 19. gxf3 {[%clk 0:02:01]}  Re8 {[%clk 0:01:47]} 20. Be3 {[%clk 0:01:57]}  Rad8 {[%clk 0:01:45]} 21. Kg2 {[%clk 0:01:51]}  Qb2 {[%clk 0:01:30]} 22. h3 {[%clk 0:01:27]}  Qe5 {[%clk 0:01:14]} 23. Bf4 {[%clk 0:01:22]}  Qh5 {[%clk 0:01:12]} 24. Re1 {[%clk 0:01:14]}  b5 {[%clk 0:00:58]} 25. a3 {[%clk 0:01:09]}  bxc4 {[%clk 0:00:55]} 26. axb4 {[%clk 0:01:03]}  c3 {[%clk 0:00:55]} 27. Rxe8+ {[%clk 0:00:58]}  Rxe8 {[%clk 0:00:55]} 28. Qd3 {[%clk 0:00:57]}  cxb4 {[%clk 0:00:53]} 29. d6 {[%clk 0:00:53]}  Qh4 {[%clk 0:00:28]} 30. d7 {[%clk 0:00:47]}  Rd8 {[%clk 0:00:27]} 31. Re1 {[%clk 0:00:45]}  Qxf4 {[%clk 0:00:23]} 32. Re8+ {[%clk 0:00:44]}  Bf8 {[%clk 0:00:24]} 33. Rxd8 {[%clk 0:00:43]}  Qg5+ {[%clk 0:00:24]} 34. Kf1 {[%clk 0:00:36]}  Qxd8 {[%clk 0:00:25]} 35. Qc4 {[%clk 0:00:36]}  a5 {[%clk 0:00:22]} 36. Qb5 {[%clk 0:00:33]}  Be7 {[%clk 0:00:21]} 37. Bc2 {[%clk 0:00:33]}  Kg7 {[%clk 0:00:20]} 38. Ba4 {[%clk 0:00:30]}  Bf6 {[%clk 0:00:19]} 39. Qc4 {[%clk 0:00:29]}  Qe7 {[%clk 0:00:15]} 40. Qc6 {[%clk 0:00:29]}  Qe5 {[%clk 0:00:11]} 41. Kg2 {[%clk 0:00:26]}  Qg5+ {[%clk 0:00:11]} 42. Kf1 {[%clk 0:00:23]}  Qc1+ {[%clk 0:00:12]} 43. Kg2 {[%clk 0:00:23]}  Qg5+ {[%clk 0:00:12]} 44. Kf1 {[%clk 0:00:23]}  Qc1+ {[%clk 0:00:12]} 45. Kg2 {[%clk 0:00:23]}  Qg5+ {[%clk 0:00:11]} 1/2-1/2


[Site "https://www.chess.com"]

[Event "Titled Tuesday Blitz July 4 Late 2023"]
[White "lagarto93"]
[Black "Zampronha, Wladimir Camilo"]
[BlackFideId "2103087"]
[WhiteElo "2493"]
[BlackElo "2283"]
[Result "1-0"]
[Round "5"]
[TimeControl "180+2"]
[Date "2023.07.04"]
[WhiteClock "0:00:06"]
[BlackClock "0:00:00"]
[Board "133"]

1. d4 {[%clk 0:03:00]}  Nf6 {[%clk 0:02:58]} 2. c4 {[%clk 0:03:01]}  e6 {[%clk 0:02:59]} 3. Nc3 {[%clk 0:03:01]}  Bb4 {[%clk 0:02:59]} 4. f3 {[%clk 0:03:01]}  d5 {[%clk 0:02:58]} 5. a3 {[%clk 0:03:01]}  Bxc3+ {[%clk 0:02:58]} 6. bxc3 {[%clk 0:03:02]}  O-O {[%clk 0:02:58]} 7. cxd5 {[%clk 0:03:03]}  Nxd5 {[%clk 0:02:56]} 8. e4 {[%clk 0:02:59]}  Nb6 {[%clk 0:02:45]} 9. Bd3 {[%clk 0:02:55]}  c5 {[%clk 0:02:45]} 10. Ne2 {[%clk 0:02:55]}  cxd4 {[%clk 0:02:44]} 11. cxd4 {[%clk 0:02:55]}  Nc6 {[%clk 0:02:45]} 12. Be3 {[%clk 0:02:55]}  e5 {[%clk 0:02:44]} 13. d5 {[%clk 0:02:54]}  Na5 {[%clk 0:02:40]} 14. O-O {[%clk 0:02:50]}  Nac4 {[%clk 0:02:37]} 15. Bc5 {[%clk 0:02:49]}  Re8 {[%clk 0:02:36]} 16. Qc2 {[%clk 0:02:44]}  Nd6 {[%clk 0:02:35]} 17. a4 {[%clk 0:02:34]}  Qf6 {[%clk 0:02:27]} 18. g4 {[%clk 0:02:28]}  Nd7 {[%clk 0:02:24]} 19. Be3 {[%clk 0:02:28]}  b6 {[%clk 0:02:21]} 20. Ng3 {[%clk 0:02:20]}  Qd8 {[%clk 0:01:56]} 21. Qc6 {[%clk 0:02:01]}  Nc5 {[%clk 0:01:30]} 22. Bxc5 {[%clk 0:01:58]}  bxc5 {[%clk 0:01:31]} 23. Qxa8 {[%clk 0:01:57]}  c4 {[%clk 0:01:30]} 24. Qxa7 {[%clk 0:01:25]}  cxd3 {[%clk 0:01:29]} 25. Rfd1 {[%clk 0:01:16]}  Re7 {[%clk 0:01:24]} 26. Qe3 {[%clk 0:01:08]}  Ba6 {[%clk 0:01:23]} 27. Rab1 {[%clk 0:01:08]}  Qa5 {[%clk 0:01:19]} 28. Rb8+ {[%clk 0:01:00]}  Re8 {[%clk 0:01:17]} 29. Rxe8+ {[%clk 0:00:41]}  Nxe8 {[%clk 0:01:18]} 30. Rc1 {[%clk 0:00:24]}  Qxa4 {[%clk 0:01:09]} 31. Nf1 {[%clk 0:00:24]}  h5 {[%clk 0:00:57]} 32. g5 {[%clk 0:00:21]}  Nd6 {[%clk 0:00:49]} 33. Nd2 {[%clk 0:00:19]}  Qa3 {[%clk 0:00:45]} 34. Rb1 {[%clk 0:00:14]}  Nc4 {[%clk 0:00:39]} 35. Nxc4 {[%clk 0:00:14]}  Bxc4 {[%clk 0:00:40]} 36. f4 {[%clk 0:00:13]}  exf4 {[%clk 0:00:39]} 37. Qxf4 {[%clk 0:00:14]}  Bb3 {[%clk 0:00:15]} 38. Rf1 {[%clk 0:00:13]}  Qc5+ {[%clk 0:00:13]} 39. Kg2 {[%clk 0:00:10]}  Qe7 {[%clk 0:00:14]} 40. h4 {[%clk 0:00:09]}  g6 {[%clk 0:00:13]} 41. Rf3 {[%clk 0:00:06]}  Bc2 {[%clk 0:00:11]} 42. e5 {[%clk 0:00:07]}  Bb3 {[%clk 0:00:07]} 43. Rxd3 {[%clk 0:00:06]}  Ba2 {[%clk 0:00:05]} 44. d6 {[%clk 0:00:05]}  Qd7 {[%clk 0:00:04]} 45. Rf3 {[%clk 0:00:04]}  Be6 {[%clk 0:00:04]} 46. Kg3 {[%clk 0:00:05]}  Qa7 {[%clk 0:00:02]} 47. Qe3 {[%clk 0:00:04]}  Qd7 {[%clk 0:00:02]} 48. Rf4 {[%clk 0:00:05]}  Bf5 {[%clk 0:00:02]} 49. Rc4 {[%clk 0:00:04]}  Qb5 {[%clk 0:00:01]} 50. Rf4 {[%clk 0:00:02]}  Kg7 {[%clk 0:00:02]} 51. Rf2 {[%clk 0:00:03]}  Qc4 {[%clk 0:00:01]} 52. Qf4 {[%clk 0:00:04]}  Qc3+ {[%clk 0:00:01]} 53. Rf3 {[%clk 0:00:05]}  Qc2 {[%clk 0:00:01]} 54. Rf2 {[%clk 0:00:05]}  Qd1 {[%clk 0:00:02]} 55. Kg2 {[%clk 0:00:06]}  Qe1 {[%clk 0:00:00]} 56. Rf1 {[%clk 0:00:06]} 1-0


[Site "https://www.chess.com"]

[Event "Titled Tuesday Blitz July 4 Late 2023"]
[White "Barwinska, Ewa"]
[Black "Gomez Barrera, Javiera Belen"]
[WhiteFideId "21833761"]
[BlackFideId "3418723"]
[WhiteElo "2274"]
[BlackElo "2463"]
[Result "0-1"]
[Round "5"]
[TimeControl "180+2"]
[Date "2023.07.04"]
[WhiteClock "0:00:30"]
[BlackClock "0:02:20"]
[Board "136"]

1. e4 {[%clk 0:03:00]}  c5 {[%clk 0:02:57]} 2. Nf3 {[%clk 0:03:00]}  Nc6 {[%clk 0:02:58]} 3. d4 {[%clk 0:03:00]}  cxd4 {[%clk 0:02:59]} 4. Nxd4 {[%clk 0:03:01]}  e5 {[%clk 0:03:00]} 5. Nb5 {[%clk 0:03:01]}  d6 {[%clk 0:02:59]} 6. c4 {[%clk 0:03:01]}  Be7 {[%clk 0:02:57]} 7. N1c3 {[%clk 0:02:53]}  a6 {[%clk 0:02:58]} 8. Na3 {[%clk 0:02:54]}  Nf6 {[%clk 0:02:58]} 9. Bg5 {[%clk 0:02:48]}  Be6 {[%clk 0:02:55]} 10. Bxf6 {[%clk 0:02:44]}  Bxf6 {[%clk 0:02:56]} 11. Nd5 {[%clk 0:02:45]}  O-O {[%clk 0:02:56]} 12. Nc2 {[%clk 0:02:37]}  g6 {[%clk 0:02:49]} 13. Nxf6+ {[%clk 0:02:28]}  Qxf6 {[%clk 0:02:50]} 14. Qxd6 {[%clk 0:02:27]}  Rad8 {[%clk 0:02:50]} 15. Qc5 {[%clk 0:02:28]}  Nd4 {[%clk 0:02:51]} 16. Ne3 {[%clk 0:02:04]}  Qf4 {[%clk 0:02:42]} 17. Bd3 {[%clk 0:01:45]}  Nf3+ {[%clk 0:02:35]} 18. gxf3 {[%clk 0:01:44]}  Rxd3 {[%clk 0:02:35]} 19. Ke2 {[%clk 0:01:41]}  Rc8 {[%clk 0:02:28]} 20. Qb4 {[%clk 0:01:19]}  Bxc4 {[%clk 0:02:26]} 21. Nxc4 {[%clk 0:00:34]}  Qxf3+ {[%clk 0:02:25]} 22. Ke1 {[%clk 0:00:32]}  Qxh1+ {[%clk 0:02:25]} 23. Ke2 {[%clk 0:00:33]}  Qxe4+ {[%clk 0:02:23]} 24. Kf1 {[%clk 0:00:30]}  Rxc4 {[%clk 0:02:20]} 0-1


[Site "https://www.chess.com"]

[Event "Titled Tuesday Blitz July 4 Late 2023"]
[White "Herman, Daniel"]
[Black "Kohler, Aran"]
[WhiteFideId "30935008"]
[BlackFideId "1002856"]
[WhiteElo "2413"]
[BlackElo "2253"]
[Result "1-0"]
[Round "5"]
[TimeControl "180+2"]
[Date "2023.07.04"]
[WhiteClock "0:00:04"]
[BlackClock "0:00:08"]
[Board "140"]

1. d4 {[%clk 0:03:00]}  d5 {[%clk 0:02:59]} 2. c4 {[%clk 0:03:01]}  c6 {[%clk 0:02:58]} 3. cxd5 {[%clk 0:03:00]}  cxd5 {[%clk 0:02:57]} 4. Bg5 {[%clk 0:03:01]}  Nc6 {[%clk 0:02:56]} 5. Nc3 {[%clk 0:03:01]}  h6 {[%clk 0:02:54]} 6. Bh4 {[%clk 0:02:59]}  Qa5 {[%clk 0:02:46]} 7. e3 {[%clk 0:02:47]}  e6 {[%clk 0:02:43]} 8. Bd3 {[%clk 0:02:40]}  Nf6 {[%clk 0:02:43]} 9. Bxf6 {[%clk 0:02:40]}  gxf6 {[%clk 0:02:43]} 10. Nf3 {[%clk 0:02:27]}  f5 {[%clk 0:02:42]} 11. O-O {[%clk 0:02:21]}  a6 {[%clk 0:02:42]} 12. a3 {[%clk 0:02:19]}  Bd6 {[%clk 0:02:25]} 13. b4 {[%clk 0:02:14]}  Qc7 {[%clk 0:02:24]} 14. g3 {[%clk 0:02:14]}  Nxb4 {[%clk 0:02:05]} 15. axb4 {[%clk 0:01:57]}  Qxc3 {[%clk 0:02:04]} 16. b5 {[%clk 0:01:58]}  Qc7 {[%clk 0:02:01]} 17. Rc1 {[%clk 0:01:53]}  Qe7 {[%clk 0:01:55]} 18. Ne5 {[%clk 0:01:48]}  Kf8 {[%clk 0:01:52]} 19. Qa4 {[%clk 0:01:34]}  Bxe5 {[%clk 0:01:47]} 20. dxe5 {[%clk 0:01:35]}  Bd7 {[%clk 0:01:47]} 21. Qa5 {[%clk 0:01:29]}  Kg7 {[%clk 0:01:44]} 22. Rc7 {[%clk 0:01:19]}  axb5 {[%clk 0:01:40]} 23. Qb6 {[%clk 0:01:18]}  Qd8 {[%clk 0:01:28]} 24. Qxb7 {[%clk 0:01:15]}  Rb8 {[%clk 0:01:14]} 25. Qa7 {[%clk 0:01:14]}  Be8 {[%clk 0:01:13]} 26. Rfc1 {[%clk 0:01:01]}  b4 {[%clk 0:01:08]} 27. Rb7 {[%clk 0:01:00]}  Ra8 {[%clk 0:00:58]} 28. Qd4 {[%clk 0:00:53]}  b3 {[%clk 0:00:56]} 29. Rxb3 {[%clk 0:00:31]}  Rc8 {[%clk 0:00:51]} 30. Rcb1 {[%clk 0:00:27]}  Rf8 {[%clk 0:00:48]} 31. Rb7 {[%clk 0:00:23]}  Qa5 {[%clk 0:00:47]} 32. Ra7 {[%clk 0:00:19]}  Qd2 {[%clk 0:00:45]} 33. Bf1 {[%clk 0:00:15]}  Rc1 {[%clk 0:00:44]} 34. Qxd2 {[%clk 0:00:14]}  Rxb1 {[%clk 0:00:43]} 35. Kg2 {[%clk 0:00:12]}  d4 {[%clk 0:00:41]} 36. exd4 {[%clk 0:00:11]}  Bc6+ {[%clk 0:00:41]} 37. f3 {[%clk 0:00:11]}  Bd5 {[%clk 0:00:41]} 38. Rd7 {[%clk 0:00:10]}  Rfb8 {[%clk 0:00:41]} 39. Rc7 {[%clk 0:00:08]}  R8b2 {[%clk 0:00:34]} 40. Rc2 {[%clk 0:00:07]}  Rb3 {[%clk 0:00:34]} 41. Be2 {[%clk 0:00:07]}  Ra1 {[%clk 0:00:31]} 42. Qf4 {[%clk 0:00:07]}  Rbb1 {[%clk 0:00:25]} 43. Qh4 {[%clk 0:00:06]}  Rg1+ {[%clk 0:00:22]} 44. Kh3 {[%clk 0:00:06]}  Ra8 {[%clk 0:00:19]} 45. Qf6+ {[%clk 0:00:06]}  Kg8 {[%clk 0:00:19]} 46. Rc7 {[%clk 0:00:07]}  Rf8 {[%clk 0:00:17]} 47. Bb5 {[%clk 0:00:05]}  Bxf3 {[%clk 0:00:13]} 48. Be8 {[%clk 0:00:05]}  Bg4+ {[%clk 0:00:09]} 49. Kh4 {[%clk 0:00:05]}  Rg2 {[%clk 0:00:07]} 50. Bxf7+ {[%clk 0:00:05]}  Kh7 {[%clk 0:00:07]} 51. Bg6+ {[%clk 0:00:05]}  Kg8 {[%clk 0:00:08]} 52. Qg7# {[%clk 0:00:04]} 1-0


[Site "https://www.chess.com"]

[Event "Titled Tuesday Blitz July 4 Late 2023"]
[White "Mendez Machado, Andre"]
[Black "Urbina Perez, Juan Antonio"]
[WhiteFideId "6603793"]
[BlackFideId "2217368"]
[WhiteElo "2246"]
[BlackElo "2402"]
[Result "1-0"]
[Round "5"]
[TimeControl "180+2"]
[Date "2023.07.04"]
[WhiteClock "0:00:15"]
[BlackClock "0:00:00"]
[Board "141"]

1. e4 {[%clk 0:02:57]}  c5 {[%clk 0:02:57]} 2. Nc3 {[%clk 0:02:55]}  Nc6 {[%clk 0:02:57]} 3. Bb5 {[%clk 0:02:56]}  Nd4 {[%clk 0:02:57]} 4. Nf3 {[%clk 0:02:55]}  e6 {[%clk 0:02:57]} 5. O-O {[%clk 0:02:47]}  a6 {[%clk 0:02:56]} 6. Bd3 {[%clk 0:02:47]}  g6 {[%clk 0:02:49]} 7. Nxd4 {[%clk 0:02:42]}  cxd4 {[%clk 0:02:50]} 8. Ne2 {[%clk 0:02:43]}  Bg7 {[%clk 0:02:49]} 9. c3 {[%clk 0:02:36]}  dxc3 {[%clk 0:02:48]} 10. bxc3 {[%clk 0:02:18]}  Ne7 {[%clk 0:02:48]} 11. f4 {[%clk 0:02:12]}  O-O {[%clk 0:02:48]} 12. f5 {[%clk 0:02:03]}  exf5 {[%clk 0:02:42]} 13. exf5 {[%clk 0:02:04]}  Nxf5 {[%clk 0:02:41]} 14. Bxf5 {[%clk 0:02:03]}  gxf5 {[%clk 0:02:42]} 15. Ng3 {[%clk 0:01:55]}  d5 {[%clk 0:02:36]} 16. d4 {[%clk 0:01:35]}  Qc7 {[%clk 0:02:26]} 17. Qf3 {[%clk 0:01:16]}  Kh8 {[%clk 0:02:06]} 18. Bf4 {[%clk 0:01:10]}  Qc6 {[%clk 0:02:00]} 19. Rae1 {[%clk 0:00:51]}  Be6 {[%clk 0:01:59]} 20. Nh5 {[%clk 0:00:47]}  Rae8 {[%clk 0:01:47]} 21. Qg3 {[%clk 0:00:47]}  Rg8 {[%clk 0:01:36]} 22. Be5 {[%clk 0:00:36]}  f6 {[%clk 0:01:07]} 23. Nxf6 {[%clk 0:00:25]}  Ref8 {[%clk 0:00:58]} 24. Nxg8 {[%clk 0:00:23]}  Rxg8 {[%clk 0:00:59]} 25. Bxg7+ {[%clk 0:00:20]}  Rxg7 {[%clk 0:01:00]} 26. Qe5 {[%clk 0:00:21]}  Bg8 {[%clk 0:00:42]} 27. Re3 {[%clk 0:00:20]}  f4 {[%clk 0:00:20]} 28. Rxf4 {[%clk 0:00:19]}  Qb5 {[%clk 0:00:17]} 29. Rg3 {[%clk 0:00:18]}  Qd7 {[%clk 0:00:14]} 30. h3 {[%clk 0:00:15]}  h5 {[%clk 0:00:06]} 31. Qxh5+ {[%clk 0:00:14]}  Rh7 {[%clk 0:00:05]} 32. Qe5+ {[%clk 0:00:14]}  Rg7 {[%clk 0:00:04]} 33. Rh4+ {[%clk 0:00:14]}  Bh7 {[%clk 0:00:00]} 34. Rhg4 {[%clk 0:00:15]} 1-0


[Site "https://www.chess.com"]

[Event "Titled Tuesday Blitz July 4 Late 2023"]
[White "Torres Dominguez, David"]
[Black "Prydun, Andriy"]
[WhiteFideId "2220857"]
[BlackFideId "14145898"]
[WhiteElo "2154"]
[BlackElo "2395"]
[Result "0-1"]
[Round "5"]
[TimeControl "180+2"]
[Date "2023.07.04"]
[WhiteClock "0:00:00"]
[BlackClock "0:01:25"]
[Board "143"]

1. e4 {[%clk 0:02:59]}  c6 {[%clk 0:02:58]} 2. Nf3 {[%clk 0:02:57]}  d5 {[%clk 0:02:59]} 3. d3 {[%clk 0:02:58]}  dxe4 {[%clk 0:02:59]} 4. dxe4 {[%clk 0:02:59]}  Qxd1+ {[%clk 0:02:59]} 5. Kxd1 {[%clk 0:03:00]}  Bg4 {[%clk 0:02:56]} 6. Be2 {[%clk 0:02:59]}  Nd7 {[%clk 0:02:55]} 7. Nfd2 {[%clk 0:02:58]}  Bxe2+ {[%clk 0:02:55]} 8. Kxe2 {[%clk 0:02:59]}  Nb6 {[%clk 0:02:53]} 9. a4 {[%clk 0:02:56]}  a6 {[%clk 0:02:43]} 10. a5 {[%clk 0:02:54]}  Nd7 {[%clk 0:02:43]} 11. Nb3 {[%clk 0:02:55]}  Ngf6 {[%clk 0:02:39]} 12. f3 {[%clk 0:02:54]}  e5 {[%clk 0:02:38]} 13. Be3 {[%clk 0:02:54]}  Bd6 {[%clk 0:02:35]} 14. N1d2 {[%clk 0:02:52]}  Bc7 {[%clk 0:02:35]} 15. Nc4 {[%clk 0:02:52]}  Ke7 {[%clk 0:02:24]} 16. Rhd1 {[%clk 0:02:51]}  Ne8 {[%clk 0:02:24]} 17. Nc5 {[%clk 0:02:41]}  Nxc5 {[%clk 0:02:16]} 18. Bxc5+ {[%clk 0:02:42]}  Ke6 {[%clk 0:02:16]} 19. Rd3 {[%clk 0:02:33]}  Rd8 {[%clk 0:02:10]} 20. Rb3 {[%clk 0:02:16]}  Rb8 {[%clk 0:02:08]} 21. Rd1 {[%clk 0:02:11]}  f6 {[%clk 0:02:08]} 22. Rbd3 {[%clk 0:02:04]}  Rg8 {[%clk 0:02:04]} 23. Rd7 {[%clk 0:01:59]}  f5 {[%clk 0:02:01]} 24. Re7+ {[%clk 0:01:52]}  Kf6 {[%clk 0:02:01]} 25. Rdd7 {[%clk 0:01:40]}  Rc8 {[%clk 0:01:59]} 26. Rf7+ {[%clk 0:01:29]}  Kg6 {[%clk 0:01:59]} 27. exf5+ {[%clk 0:01:23]}  Kh6 {[%clk 0:01:59]} 28. Be3+ {[%clk 0:01:13]}  Kh5 {[%clk 0:01:59]} 29. g4+ {[%clk 0:01:10]}  Kh4 {[%clk 0:01:58]} 30. Bf2+ {[%clk 0:00:59]}  Kg5 {[%clk 0:01:58]} 31. Bg3 {[%clk 0:00:58]}  h5 {[%clk 0:01:50]} 32. h4+ {[%clk 0:00:58]}  Kh6 {[%clk 0:01:50]} 33. g5+ {[%clk 0:00:58]}  Kh7 {[%clk 0:01:50]} 34. f6 {[%clk 0:00:52]}  Kg6 {[%clk 0:01:45]} 35. fxg7 {[%clk 0:00:39]}  Rxg7 {[%clk 0:01:41]} 36. Rxg7+ {[%clk 0:00:23]}  Nxg7 {[%clk 0:01:42]} 37. Bxe5 {[%clk 0:00:20]}  Bxe5 {[%clk 0:01:31]} 38. Nxe5+ {[%clk 0:00:21]}  Kh7 {[%clk 0:01:30]} 39. g6+ {[%clk 0:00:20]}  Kh6 {[%clk 0:01:29]} 40. Rxb7 {[%clk 0:00:17]}  c5 {[%clk 0:01:29]} 41. Nf7+ {[%clk 0:00:10]}  Kxg6 {[%clk 0:01:28]} 42. Nd6 {[%clk 0:00:11]}  Rd8 {[%clk 0:01:27]} 43. Rb6 {[%clk 0:00:03]}  Kh7 {[%clk 0:01:26]} 44. f4 {[%clk 0:00:02]}  Nf5 {[%clk 0:01:25]} 45. Kf3 {[%clk 0:00:03]}  Nxd6 {[%clk 0:01:26]} 46. Rxa6 {[%clk 0:00:02]}  Nc4 {[%clk 0:01:26]} 47. Ra7+ {[%clk 0:00:00]}  Kg6 {[%clk 0:01:25]} 0-1


[Site "https://www.chess.com"]

[Event "Titled Tuesday Blitz July 4 Late 2023"]
[White "Gabdushev, Ruslan"]
[Black "campochess"]
[WhiteFideId "4137833"]
[WhiteElo "2384"]
[BlackElo "2133"]
[Result "1-0"]
[Round "5"]
[TimeControl "180+2"]
[Date "2023.07.04"]
[WhiteClock "0:00:02"]
[BlackClock "0:00:49"]
[Board "145"]

1. b3 {[%clk 0:02:59]}  e5 {[%clk 0:02:58]} 2. Bb2 {[%clk 0:02:59]}  Nc6 {[%clk 0:02:58]} 3. e3 {[%clk 0:02:59]}  Nf6 {[%clk 0:02:58]} 4. Bb5 {[%clk 0:02:58]}  Bd6 {[%clk 0:02:58]} 5. Na3 {[%clk 0:02:57]}  O-O {[%clk 0:02:57]} 6. Nc4 {[%clk 0:02:55]}  Qe7 {[%clk 0:02:56]} 7. Bxc6 {[%clk 0:02:43]}  dxc6 {[%clk 0:02:54]} 8. a4 {[%clk 0:02:41]}  Bf5 {[%clk 0:02:48]} 9. Ne2 {[%clk 0:02:39]}  h6 {[%clk 0:02:47]} 10. Ng3 {[%clk 0:02:32]}  Bh7 {[%clk 0:02:46]} 11. O-O {[%clk 0:02:31]}  Rad8 {[%clk 0:02:42]} 12. d3 {[%clk 0:02:27]}  Qe6 {[%clk 0:02:41]} 13. Qf3 {[%clk 0:02:22]}  e4 {[%clk 0:02:35]} 14. dxe4 {[%clk 0:02:19]}  Bxg3 {[%clk 0:02:33]} 15. hxg3 {[%clk 0:02:17]}  Nxe4 {[%clk 0:02:30]} 16. Rad1 {[%clk 0:02:07]}  b5 {[%clk 0:02:29]} 17. axb5 {[%clk 0:01:56]}  cxb5 {[%clk 0:02:29]} 18. Ne5 {[%clk 0:01:54]}  Nd2 {[%clk 0:02:24]} 19. Qe2 {[%clk 0:01:42]}  Nxf1 {[%clk 0:02:23]} 20. Rxf1 {[%clk 0:01:42]}  Rd5 {[%clk 0:02:21]} 21. Nf3 {[%clk 0:01:38]}  Rfd8 {[%clk 0:02:19]} 22. Ra1 {[%clk 0:01:35]}  Qc6 {[%clk 0:02:17]} 23. Nd4 {[%clk 0:01:28]}  Qb7 {[%clk 0:02:16]} 24. b4 {[%clk 0:01:26]}  c5 {[%clk 0:02:11]} 25. bxc5 {[%clk 0:01:23]}  Rxc5 {[%clk 0:02:10]} 26. Qg4 {[%clk 0:01:20]}  Be4 {[%clk 0:01:55]} 27. f3 {[%clk 0:01:11]}  Bg6 {[%clk 0:01:40]} 28. c3 {[%clk 0:00:49]}  Qe7 {[%clk 0:01:39]} 29. e4 {[%clk 0:00:45]}  Qc7 {[%clk 0:01:34]} 30. Ra6 {[%clk 0:00:34]}  Rxc3 {[%clk 0:01:32]} 31. Bxc3 {[%clk 0:00:34]}  Qxc3 {[%clk 0:01:31]} 32. Nc6 {[%clk 0:00:29]}  Rd1+ {[%clk 0:01:28]} 33. Kh2 {[%clk 0:00:29]}  Qc1 {[%clk 0:01:28]} 34. Qc8+ {[%clk 0:00:03]}  Kh7 {[%clk 0:01:27]} 35. g4 {[%clk 0:00:04]}  Rh1+ {[%clk 0:01:25]} 36. Kg3 {[%clk 0:00:03]}  Qe1+ {[%clk 0:01:17]} 37. Kf4 {[%clk 0:00:03]}  Qd2+ {[%clk 0:01:05]} 38. Ke5 {[%clk 0:00:03]}  Rd1 {[%clk 0:01:02]} 39. Ne7 {[%clk 0:00:03]}  Qd6+ {[%clk 0:01:01]} 40. Rxd6 {[%clk 0:00:02]}  f6+ {[%clk 0:00:49]} 41. Ke6 {[%clk 0:00:02]} 1-0


[Site "https://www.chess.com"]